bitfinex/quotes_BTCUSD_20241111
["timestamp","ask_amount","ask_price","bid_price","bid_amount"]
[1731368826480,0.17476584,88577.0,88533.0,0.05672438]
[1731368826681,0.17476584,88577.0,88545.0,0.16976584]
[1731368827054,0.16976584,88577.0,88546.0,0.1164816]
[1731368827274,0.16976584,88577.0,88547.0,0.17025098]
[1731368827765,0.16976584,88568.0,88547.0,0.11422305]
[1731368828191,0.16976584,88568.0,88536.0,0.05663212]
[1731368828358,0.16976584,88568.0,88545.0,0.05675642]
[1731368828737,0.16822824,88568.0,88538.0,0.05621306]
[1731368828944,0.16822824,88568.0,88541.0,0.16976584]
[1731368829144,0.16976584,88577.0,88551.0,0.05690581]
[1731368829342,0.16976584,88568.0,88543.0,0.05605276]
[1731368829581,0.16976584,88577.0,88551.0,0.05690581]
[1731368829768,0.11422305,88574.0,88542.0,0.05655977]
[1731368830145,0.11422305,88574.0,88553.0,0.16976584]
[1731368830552,0.00036712,88584.0,88553.0,0.16976584]
[1731368830803,0.00036712,88584.0,88555.0,0.05635033]
[1731368830969,0.00036712,88584.0,88556.0,0.11422305]
[1731368831189,0.00036712,88584.0,88562.0,0.16976584]
[1731368831397,0.00036712,88584.0,88563.0,0.16976584]
[1731368831613,0.1,88568.0,88563.0,0.16976584]
[1731368831821,0.1,88568.0,88564.0,0.11648115]
[1731368831951,0.1,88568.0,88564.0,0.11422305]
[1731368833418,0.1,88568.0,88567.0,0.36876748]
[1731368833625,0.00036712,88584.0,88574.0,0.035]
[1731368833796,0.00036712,88584.0,88583.0,0.19755904]
[1731368833999,0.0008533,88589.0,88588.0,0.0568313]
[1731368834200,0.0008533,88589.0,88588.0,0.24955435]
[1731368834603,0.0008533,88589.0,88588.0,0.17105435]
[1731368834855,0.0008533,88589.0,88588.0,0.11422305]
[1731368835030,0.0008533,88589.0,88571.0,0.16976584]
[1731368835031,0.0008533,88589.0,88581.0,0.05635889]
[1731368835252,0.0008533,88589.0,88582.0,0.1164806]
[1731368835425,0.0008533,88589.0,88583.0,0.05660849]
[1731368835640,0.0008533,88589.0,88584.0,0.11422305]
[1731368835848,0.0008533,88589.0,88585.0,0.22585615]
[1731368836081,0.0008533,88589.0,88587.0,0.05641945]
[1731368836225,0.0008533,88589.0,88588.0,0.17105435]
[1731368836438,0.0008533,88589.0,88588.0,0.11422305]
[1731368836812,0.0008533,88589.0,88577.0,0.24939012]
[1731368836813,0.0008533,88589.0,88577.0,0.19255904]
[1731368837018,0.0008533,88589.0,88573.0,0.005]
[1731368837019,0.0008533,88589.0,88581.0,0.05635889]
[1731368837401,0.0008533,88589.0,88582.0,0.17101582]
[1731368837719,0.19255904,88583.0,88550.0,0.16976584]
[1731368838024,0.0544,88585.0,88550.0,0.16976584]
[1731368838025,0.0544,88585.0,88574.0,0.16976584]
[1731368838248,0.0544,88585.0,88564.0,0.16976584]
[1731368838249,0.15976584,88583.0,88564.0,0.16976584]
[1731368838453,0.16862305,88585.0,88564.0,0.16976584]
[1731368838860,0.16862305,88585.0,88565.0,0.11648107]
[1731368838861,0.0494,88585.0,88565.0,0.11648107]
[1731368839084,0.16976584,88584.0,88565.0,0.11648107]
[1731368839251,0.16976584,88584.0,88565.0,0.11422305]
[1731368839452,0.16976584,88584.0,88551.0,0.05690581]
[1731368839655,0.16976584,88584.0,88562.0,0.16976584]
[1731368841829,0.16976584,88575.0,88552.0,0.11422305]
[1731368842025,0.11422305,88583.0,88560.0,0.02495623]
[1731368842199,0.11422305,88583.0,88552.0,0.11422305]
[1731368842409,0.11422305,88583.0,88561.0,0.16976584]
[1731368843277,0.0502522,88585.0,88572.0,0.16976584]
[1731368843424,0.0502522,88585.0,88570.0,0.16976584]
[1731368843626,0.0502522,88585.0,88571.0,0.28624693]
[1731368843828,0.0008522,88585.0,88571.0,0.28624693]
[1731368844046,0.0008522,88585.0,88571.0,0.11422305]
[1731368844047,0.16976584,88584.0,88571.0,0.11422305]
[1731368844195,0.0008522,88585.0,88572.0,0.16976584]
[1731368844406,0.0008522,88585.0,88571.0,0.11422305]
[1731368844644,0.0008522,88585.0,88561.0,0.16976584]
[1731368844645,0.16976584,88582.0,88561.0,0.16976584]
[1731368844858,0.0008522,88585.0,88562.0,0.16976584]
[1731368845060,0.0008522,88585.0,88572.0,0.16976584]
[1731368845269,0.0008522,88585.0,88573.0,0.02495623]
[1731368845417,0.0008522,88585.0,88576.0,0.05600986]
[1731368845623,0.0008522,88585.0,88578.0,0.05614546]
[1731368845841,0.0008522,88585.0,88580.0,0.05641922]
[1731368846040,0.0008522,88585.0,88582.0,0.05679277]
[1731368846271,0.0008522,88585.0,88583.0,0.17083154]
[1731368846473,0.0008522,88585.0,88583.0,0.11422305]
[1731368846891,0.0008522,88585.0,88572.0,0.22613682]
[1731368847103,0.0008522,88585.0,88573.0,0.11422305]
[1731368847353,0.0008522,88585.0,88573.0,0.17084015]
[1731368847487,0.0008522,88585.0,88573.0,0.11422305]
[1731368848201,0.0008522,88585.0,88575.0,0.05601428]
[1731368848409,0.0008522,88585.0,88576.0,0.11422305]
[1731368849515,0.0008522,88585.0,88563.0,0.05627485]
[1731368849642,0.0008522,88585.0,88572.0,0.16976584]
[1731368849855,0.005,88570.0,88528.0,0.59723989]
[1731368850051,0.005,88558.0,88547.0,0.16976584]
[1731368850292,0.005,88554.0,88545.0,0.00029471]
[1731368850657,0.028,88559.0,88545.0,0.00029471]
[1731368850658,0.0479,88546.0,88545.0,0.00029471]
[1731368850826,0.005,88528.0,88518.0,0.16976584]
[1731368850983,0.11422305,88527.0,88518.0,0.16976584]
[1731368851183,0.11422305,88526.0,88512.0,0.0017044]
[1731368852228,0.11422305,88526.0,88495.0,0.10569164]
[1731368852577,0.16976584,88522.0,88496.0,0.11422305]
[1731368852804,0.16976584,88535.0,88513.0,0.19255904]
[1731368852995,0.16976584,88535.0,88514.0,0.11422305]
[1731368852996,0.16976584,88521.0,88514.0,0.11422305]
[1731368853237,0.16976584,88520.0,88495.0,0.0560439]
[1731368853459,0.16976584,88524.0,88497.0,0.05643107]
[1731368853656,0.11922305,88534.0,88498.0,0.11648273]
[1731368853657,0.16976584,88520.0,88498.0,0.11648273]
[1731368853787,0.16976584,88523.0,88498.0,0.11648273]
[1731368853975,0.16976584,88523.0,88499.0,0.05671058]
[1731368854174,0.16976584,88523.0,88501.0,0.05633517]
[1731368854572,0.16976584,88523.0,88502.0,0.17065566]
[1731368854972,0.16976584,88523.0,88503.0,0.05859918]
[1731368855109,0.16976584,88523.0,88504.0,0.17088482]
[1731368855310,0.16976584,88523.0,88506.0,0.05698961]
[1731368855533,0.16976584,88523.0,88508.0,0.05682078]
[1731368855731,0.16976584,88523.0,88510.0,0.05677208]
[1731368855936,0.16976584,88523.0,88493.0,0.0067044]
[1731368855937,0.16976584,88544.0,88516.0,0.002]
[1731368856117,0.16976584,88526.0,88518.0,0.056014]
[1731368856318,0.16976584,88535.0,88520.0,0.05633542]
[1731368856571,0.16976584,88535.0,88522.0,0.05649847]
[1731368856719,0.16976584,88535.0,88506.0,0.05698961]
[1731368856934,0.16976584,88535.0,88511.0,0.05659709]
[1731368857139,0.16976584,88535.0,88513.0,0.05662561]
[1731368857342,0.16976584,88535.0,88515.0,0.05668811]
[1731368857587,0.16976584,88535.0,88516.0,0.11422305]
[1731368858478,0.16976584,88535.0,88502.0,0.05643261]
[1731368858675,0.16976584,88535.0,88512.0,0.16976584]
[1731368858885,0.16976584,88535.0,88512.0,0.11422305]
[1731368859534,0.16976584,88535.0,88500.0,0.005]
[1731368859535,0.16976584,88526.0,88500.0,0.06143629]
[1731368859772,0.16976584,88535.0,88500.0,0.06143629]
[1731368859773,0.16976584,88524.0,88500.0,0.11422305]
[1731368860000,0.16976584,88524.0,88498.0,0.16976584]
[1731368860001,0.21766584,88534.0,88507.0,0.16976584]
[1731368860204,0.16976584,88523.0,88508.0,0.11422305]
[1731368860474,0.16976584,88523.0,88490.0,0.002]
[1731368860475,0.16976584,88510.0,88483.0,0.05642777]
[1731368860676,0.16976584,88510.0,88478.0,0.005]
[1731368860677,0.023,88521.0,88499.0,0.16976584]
[1731368860897,0.16976584,88509.0,88481.0,0.16976584]
[1731368861119,0.11422305,88509.0,88494.0,0.16976584]
[1731368861329,0.11422305,88509.0,88481.0,0.16976584]
[1731368861681,0.16976584,88508.0,88481.0,0.16976584]
[1731368861880,0.67349352,88507.0,88481.0,0.16976584]
[1731368862526,0.16976584,88506.0,88481.0,0.22614729]
[1731368862982,0.16976584,88506.0,88483.0,0.05642777]
[1731368863152,0.16976584,88506.0,88482.0,0.05679966]
[1731368863499,0.16976584,88506.0,88494.0,0.0017048]
[1731368864118,3.0,88500.0,88494.0,0.0017048]
[1731368864534,3.0,88500.0,88495.0,0.16976584]
[1731368864895,0.67349352,88507.0,88495.0,0.11422305]
[1731368865047,0.16976584,88506.0,88496.0,0.05661683]
[1731368865249,0.16976584,88506.0,88498.0,0.05623749]
[1731368865457,0.16976584,88506.0,88500.0,0.05643629]
[1731368865680,0.16976584,88506.0,88501.0,0.11422305]
[1731368865883,0.67349352,88520.0,88501.0,0.17055822]
[1731368866095,0.16976584,88511.0,88501.0,0.11422305]
[1731368866397,0.16976584,88510.0,88494.0,0.0017048]
[1731368866604,0.11422305,88519.0,88494.0,0.0017048]
[1731368866759,0.16976584,88512.0,88494.0,0.0017048]
[1731368866969,0.67349352,88520.0,88496.0,0.05661683]
[1731368867169,0.16976584,88521.0,88497.0,0.17065412]
[1731368867383,0.16976584,88512.0,88494.0,0.0017048]
[1731368867733,0.11422305,88520.0,88497.0,0.16976584]
[1731368867934,0.16976584,88512.0,88494.0,0.0017048]
[1731368869494,0.11422305,88511.0,88494.0,0.0017048]
[1731368869675,0.11422305,88511.0,88495.0,0.00153371]
[1731368870901,0.67349352,88510.0,88495.0,0.00153371]
[1731368871119,0.67349352,88510.0,88496.0,0.16976584]
[1731368871327,0.16976584,88509.0,88495.0,0.11575676]
[1731368871784,0.16976584,88509.0,88495.0,0.00153371]
[1731368872587,0.28398889,88509.0,88495.0,0.00153371]
[1731368873432,0.27949125,88509.0,88495.0,0.00153371]
[1731368874106,0.11422305,88509.0,88495.0,0.00153371]
[1731368875570,0.16976584,88508.0,88495.0,0.00153371]
[1731368876176,0.005,88521.0,88495.0,0.00153371]
[1731368876380,0.16976584,88504.0,88495.0,0.00153371]
[1731368876608,0.16976584,88513.0,88495.0,0.00153371]
[1731368876807,0.16976584,88503.0,88495.0,0.00153371]
[1731368877030,0.11422305,88502.0,88495.0,0.00153371]
[1731368877209,0.11422305,88502.0,88495.0,0.00323831]
[1731368877430,0.84325936,88501.0,88495.0,0.00323831]
[1731368877635,0.19722305,88496.0,88495.0,0.0017046]
[1731368877992,0.52569879,88496.0,88495.0,0.0017046]
[1731368878697,0.21522305,88496.0,88495.0,0.0017046]
[1731368878863,0.0498,88504.0,88495.0,0.0017046]
[1731368879069,0.28398889,88503.0,88495.0,0.0017046]
[1731368879409,0.11422305,88503.0,88495.0,0.0017046]
[1731368879605,0.16976584,88502.0,88495.0,0.0017046]
[1731368879866,0.11422305,88501.0,88495.0,0.0017046]
[1731368880651,0.01,88497.0,88495.0,0.0017046]
[1731368880860,0.14222305,88496.0,88495.0,0.0017046]
[1731368882364,4e-05,88500.0,88495.0,0.0017046]
[1731368883491,0.16976584,88498.0,88495.0,0.0017046]
[1731368883707,4e-05,88500.0,88495.0,0.0017046]
[1731368884130,4e-05,88500.0,88497.0,0.05643107]
[1731368884344,0.16976584,88515.0,88509.0,0.05620452]
[1731368884666,0.16976584,88515.0,88511.0,0.05659709]
[1731368884942,0.16976584,88515.0,88513.0,0.05662561]
[1731368885176,0.0008523,88521.0,88513.0,0.05662561]
[1731368885177,0.0008523,88521.0,88514.0,0.19652305]
[1731368885380,0.16976584,88533.0,88528.0,0.002]
[1731368885592,0.16976584,88533.0,88524.0,0.30047574]
[1731368885593,0.16976584,88533.0,88529.0,0.11648195]
[1731368885727,0.67349352,88551.0,88534.0,0.005]
[1731368885934,0.67349352,88551.0,88536.0,0.05663212]
[1731368886149,0.67349352,88551.0,88524.0,0.0456]
[1731368886333,0.67349352,88543.0,88527.0,0.16976584]
[1731368886757,0.61655698,88543.0,88528.0,0.05671514]
[1731368886966,0.61655698,88543.0,88537.0,0.16976584]
[1731368887167,0.16976584,88573.0,88527.0,0.16976584]
[1731368887168,0.16976584,88564.0,88541.0,0.05619218]
[1731368887377,0.16976584,88551.0,88543.0,0.05605276]
[1731368887589,0.16976584,88564.0,88545.0,0.05675642]
[1731368887794,0.16976584,88564.0,88547.0,0.05602793]
[1731368888001,0.16976584,88564.0,88549.0,0.05653613]
[1731368888217,0.16976584,88564.0,88551.0,0.05690581]
[1731368888441,0.16976584,88571.0,88560.0,0.30047574]
[1731368888652,0.16976584,88571.0,88562.0,0.05607946]
[1731368888880,0.16976584,88571.0,88550.0,0.0823]
[1731368889188,0.16976584,88570.0,88554.0,0.22615633]
[1731368889385,0.16976584,88570.0,88551.0,0.05690581]
[1731368889633,0.16976584,88570.0,88552.0,0.16976584]
[1731368889879,0.16976584,88570.0,88553.0,0.16976584]
[1731368890151,0.56416038,88580.0,88553.0,0.16976584]
[1731368890307,0.16976584,88579.0,88554.0,0.05639049]
[1731368890459,0.16976584,88579.0,88556.0,0.05610895]
[1731368890678,0.16976584,88579.0,88557.0,0.00234032]
[1731368890859,0.16976584,88569.0,88557.0,0.00234032]
[1731368891062,0.16976584,88569.0,88537.0,0.0456]
[1731368891063,0.023,88577.0,88558.0,0.16976584]
[1731368891290,0.005,88568.0,88548.0,0.16976584]
[1731368891495,0.13722305,88567.0,88548.0,0.17210616]
[1731368891884,0.005,88553.0,88527.0,0.16976584]
[1731368892026,0.56416038,88566.0,88527.0,0.16976584]
[1731368892027,0.023,88551.0,88549.0,0.16976584]
[1731368892254,0.11422305,88550.0,88540.0,0.00234032]
[1731368892582,0.005,88547.0,88540.0,0.00234032]
[1731368892789,0.023,88541.0,88527.0,0.16976584]
[1731368893000,0.11422305,88540.0,88538.0,0.16976584]
[1731368893156,0.11422305,88540.0,88539.0,0.00117016]
[1731368893362,0.005,88538.0,88528.0,0.16976584]
[1731368893570,0.13722305,88537.0,88528.0,0.170936]
[1731368893771,0.13722305,88537.0,88529.0,0.00117016]
[1731368893976,0.56393231,88536.0,88518.0,0.16976584]
[1731368894178,0.56393231,88535.0,88527.0,0.16976584]
[1731368894336,0.56393231,88535.0,88519.0,0.00234032]
[1731368894337,0.56393231,88535.0,88528.0,0.00234032]
[1731368894540,0.16976584,88534.0,88528.0,0.00234032]
[1731368894759,0.11922305,88533.0,88528.0,0.00234032]
[1731368895017,0.023,88527.0,88510.0,0.00234032]
[1731368895211,0.57815536,88526.0,88521.0,0.16976584]
[1731368895418,0.46393231,88525.0,88522.0,0.00234032]
[1731368895642,0.11422305,88524.0,88522.0,0.00234032]
[1731368896052,0.11422305,88524.0,88495.0,0.0577485]
[1731368896255,0.11422305,88524.0,88518.0,0.16976584]
[1731368896414,0.11422305,88524.0,88519.0,0.02849938]
[1731368896620,0.11399485,88524.0,88519.0,0.02849938]
[1731368896818,0.46393231,88523.0,88519.0,0.02849938]
[1731368897040,0.57815536,88522.0,88519.0,0.02849938]
[1731368897469,0.46393231,88521.0,88519.0,0.02849938]
[1731368897649,0.57815536,88520.0,88519.0,0.02849938]
[1731368897849,0.46393231,88520.0,88519.0,0.02849938]
[1731368898243,0.60115536,88520.0,88519.0,0.02849938]
[1731368899920,0.46393231,88520.0,88519.0,0.02849938]
[1731368900805,0.005,88517.0,88508.0,0.01094768]
[1731368900976,0.005,88527.0,88501.0,0.16976584]
[1731368900977,0.46393231,88516.0,88510.0,0.1916612]
[1731368901151,0.46393231,88516.0,88510.0,0.02359956]
[1731368901351,0.46393231,88516.0,88510.0,0.02379616]
[1731368901703,0.11422305,88515.0,88510.0,0.02379616]
[1731368902325,0.16976584,88514.0,88510.0,0.02379616]
[1731368902477,0.11422305,88513.0,88510.0,0.02379616]
[1731368902707,0.46393231,88516.0,88510.0,0.02379616]
[1731368902869,0.46393231,88512.0,88510.0,0.02379616]
[1731368903087,0.46393231,88511.0,88510.0,0.02379616]
[1731368905211,0.46393231,88526.0,88510.0,0.08056824]
[1731368905418,0.16976584,88520.0,88510.0,0.08056824]
[1731368905622,0.0008521,88527.0,88510.0,0.08056824]
[1731368905841,0.0008521,88527.0,88512.0,0.13251787]
[1731368906054,0.16976584,88521.0,88512.0,0.0758]
[1731368906266,0.0008521,88527.0,88513.0,0.18360242]
[1731368906498,0.0008521,88527.0,88523.0,0.005]
[1731368906708,0.0008521,88527.0,88524.0,0.17028887]
[1731368906709,0.16976584,88526.0,88524.0,0.17028887]
[1731368906915,0.0008521,88527.0,88524.0,0.18412545]
[1731368907117,0.15298515,88540.0,88524.0,0.18412545]
[1731368908699,0.15298515,88540.0,88525.0,0.16976584]
[1731368908903,0.15298515,88540.0,88526.0,0.12805963]
[1731368909628,0.15298515,88540.0,88526.0,0.18492676]
[1731368909836,0.005,88561.0,88527.0,0.16976584]
[1731368909995,0.16976584,88546.0,88529.0,0.16976584]
[1731368910195,0.16976584,88546.0,88530.0,0.01383658]
[1731368912432,0.46393231,88545.0,88530.0,0.01383658]
[1731368914485,0.46393231,88544.0,88533.0,0.16976584]
[1731368914681,0.46393231,88544.0,88534.0,0.01037938]
[1731368915962,0.16976584,88543.0,88534.0,0.01037938]
[1731368916106,0.46393231,88544.0,88534.0,0.01037938]
[1731368916534,0.46393231,88544.0,88534.0,0.01057598]
[1731368918422,0.46393231,88543.0,88534.0,0.01057598]
[1731368918840,0.46393231,88542.0,88534.0,0.01057598]
[1731368919011,0.46393231,88541.0,88534.0,0.01057598]
[1731368919213,0.63369815,88540.0,88534.0,0.01057598]
[1731368919452,0.46393231,88540.0,88534.0,0.01057598]
[1731368919660,0.57815536,88539.0,88534.0,0.01057598]
[1731368919998,0.46393231,88538.0,88534.0,0.01057598]
[1731368920977,0.46393231,88538.0,88535.0,0.16976584]
[1731368921212,0.46393231,88538.0,88536.0,0.0071107]
[1731368921465,0.46393231,88538.0,88537.0,0.47638702]
[1731368921673,0.000854,88546.0,88537.0,0.30681778]
[1731368921823,0.000854,88546.0,88537.0,0.19259473]
[1731368922023,0.16976584,88545.0,88538.0,0.0071107]
[1731368922191,0.000854,88546.0,88538.0,0.0073073]
[1731368924232,0.11422305,88545.0,88538.0,0.0073073]
[1731368924447,0.000854,88546.0,88538.0,0.0073073]
[1731368925387,0.000854,88546.0,88541.0,0.16976584]
[1731368925593,0.000854,88546.0,88542.0,0.0180761]
[1731368925768,0.000854,88546.0,88542.0,0.0182727]
[1731368926385,0.000854,88546.0,88542.0,0.01467185]
[1731368926583,0.46393231,88545.0,88542.0,0.01467185]
[1731368927673,0.46393231,88544.0,88542.0,0.01467185]
[1731368927877,0.46393231,88543.0,88542.0,0.01467185]
[1731368931746,0.60615536,88543.0,88542.0,0.01467185]
[1731368932005,0.60615536,88543.0,88542.0,0.0001966]
[1731368932330,0.46393231,88543.0,88542.0,0.01103058]
[1731368932860,0.46393231,88543.0,88542.0,0.06759035]
[1731368933064,0.46393231,88543.0,88542.0,0.01103057]
[1731368933292,0.46393231,88543.0,88542.0,0.06759034]
[1731368933489,0.46393231,88543.0,88542.0,0.01103057]
[1731368936109,0.000854,88546.0,88542.0,0.01103057]
[1731368936315,0.000854,88546.0,88543.0,0.00905938]
[1731368936592,0.000854,88546.0,88543.0,0.00925597]
[1731368937028,0.46393231,88545.0,88543.0,0.00925597]
[1731368937648,0.46393231,88544.0,88543.0,0.00925597]
[1731368938060,0.46393231,88545.0,88543.0,0.00925597]
[1731368938443,0.46393231,88544.0,88543.0,0.00925597]
[1731368938621,0.46393231,88545.0,88543.0,0.00925597]
[1731368938823,0.46393231,88544.0,88543.0,0.00925597]
[1731368939015,0.46393231,88545.0,88543.0,0.00925597]
[1731368939211,0.46393231,88544.0,88543.0,0.00925597]
[1731368941408,0.000854,88546.0,88543.0,0.22125548]
[1731368941610,0.14077008,88545.0,88543.0,0.06530873]
[1731368941841,0.000854,88546.0,88543.0,0.06530873]
[1731368942046,0.000854,88546.0,88543.0,0.00925597]
[1731368942568,0.57815536,88545.0,88543.0,0.00925597]
[1731368943556,0.46393231,88545.0,88543.0,0.00925597]
[1731368944197,0.46393231,88545.0,88543.0,0.06530873]
[1731368944401,0.46393231,88545.0,88543.0,0.00925597]
[1731368944545,0.46393231,88545.0,88543.0,0.06530873]
[1731368944740,0.46393231,88545.0,88543.0,0.00925597]
[1731368945006,0.46393231,88545.0,88543.0,0.06530873]
[1731368945231,0.46393231,88545.0,88544.0,0.16976584]
[1731368945357,0.000854,88546.0,88545.0,0.08198749]
[1731368945588,0.46393231,88568.0,88545.0,0.08198749]
[1731368945589,0.16976584,88560.0,88545.0,0.20169462]
[1731368945782,0.16976584,88560.0,88546.0,0.12097539]
[1731368946067,0.16976584,88560.0,88546.0,0.00694893]
[1731368946454,0.45228631,88568.0,88546.0,0.00694893]
[1731368946659,0.45228631,88567.0,88546.0,0.00694893]
[1731368946796,0.45228631,88567.0,88548.0,0.05645356]
[1731368947144,0.45228631,88567.0,88550.0,0.05678488]
[1731368947293,0.45228631,88567.0,88552.0,0.056097]
[1731368947480,0.45228631,88567.0,88553.0,0.06279222]
[1731368947687,0.45228631,88567.0,88554.0,0.05639049]
[1731368947903,0.45228631,88567.0,88556.0,0.05610895]
[1731368948111,0.45228631,88567.0,88558.0,0.05691894]
[1731368948313,0.45228631,88567.0,88559.0,0.00675234]
[1731368948527,0.45228631,88567.0,88560.0,0.05698988]
[1731368948735,0.45228631,88567.0,88561.0,0.06374445]
[1731368948943,0.45228631,88567.0,88561.0,0.06394103]
[1731368949849,0.45228631,88567.0,88561.0,0.00694892]
[1731368950874,0.45228631,88567.0,88561.0,0.06394103]
[1731368951074,0.45228631,88566.0,88561.0,0.00694892]
[1731368951275,0.45228631,88566.0,88561.0,0.06394103]
[1731368951478,0.45228631,88566.0,88561.0,0.00694892]
[1731368952501,0.58950936,88565.0,88561.0,0.00694892]
[1731368953115,0.45228631,88565.0,88564.0,0.16976584]
[1731368953321,0.45228631,88565.0,88564.0,0.00542866]
[1731368955707,0.45228631,88565.0,88543.0,0.0017076]
[1731368955708,0.005,88561.0,88543.0,0.0017076]
[1731368955915,0.023,88546.0,88544.0,0.16976584]
[1731368956110,0.005,88554.0,88544.0,0.16976584]
[1731368956111,0.023,88554.0,88544.0,0.16976584]
[1731368956415,0.023,88554.0,88543.0,0.0017076]
[1731368956631,0.45228631,88553.0,88543.0,0.0017076]
[1731368957398,0.023,88552.0,88543.0,0.0017076]
[1731368958253,0.11422305,88551.0,88543.0,0.0017076]
[1731368958448,0.028,88544.0,88543.0,0.0017076]
[1731368958725,0.14222305,88544.0,88543.0,0.0017076]
[1731368959149,0.023,88549.0,88543.0,0.0017076]
[1731368959721,0.45228631,88550.0,88543.0,0.0017076]
[1731368960346,0.16976584,88549.0,88543.0,0.0017076]
[1731368960528,0.45228631,88550.0,88543.0,0.0017076]
[1731368961543,0.023,88549.0,88543.0,0.0017076]
[1731368962151,0.023,88546.0,88543.0,0.0017076]
[1731368962487,0.023,88544.0,88543.0,0.0017076]
[1731368962691,0.13722305,88544.0,88543.0,0.0017076]
[1731368962896,0.58950936,88544.0,88543.0,0.0017076]
[1731368963312,0.59450936,88544.0,88543.0,0.0017076]
[1731368964107,0.01,88539.0,88538.0,0.00040769]
[1731368964315,0.028,88530.0,88529.0,0.0017078]
[1731368964515,0.14222305,88530.0,88529.0,0.0017078]
[1731368965954,0.1018318,88530.0,88529.0,0.0017078]
[1731368967354,0.08977205,88530.0,88529.0,0.0017078]
[1731368967959,0.06677205,88530.0,88529.0,0.01997352]
[1731368968367,0.08977205,88530.0,88529.0,0.01997352]
[1731368968645,0.08977205,88530.0,88529.0,0.0017078]
[1731368969607,0.08977205,88530.0,88529.0,0.01997352]
[1731368970140,0.08977205,88530.0,88529.0,0.0017078]
[1731368971170,0.08977205,88530.0,88529.0,0.01506408]
[1731368971375,0.45187862,88531.0,88529.0,0.01506408]
[1731368971868,0.45187862,88531.0,88530.0,0.01335628]
[1731368978424,0.45187862,88545.0,88530.0,0.01335628]
[1731368978573,0.11422305,88544.0,88530.0,0.01335628]
[1731368979566,0.28398889,88544.0,88530.0,0.01335628]
[1731368981820,0.023,88543.0,88530.0,0.01335628]
[1731368982046,0.028,88541.0,88530.0,0.01335628]
[1731368982257,0.023,88532.0,88530.0,0.01335628]
[1731368982466,0.023,88530.0,88529.0,0.0017078]
[1731368982693,0.13722305,88530.0,88529.0,0.0017078]
[1731368983505,0.45017082,88523.0,88510.0,0.17147004]
[1731368983712,0.56439387,88522.0,88519.0,0.16976584]
[1731368983925,0.56439387,88522.0,88510.0,0.17147004]
[1731368984364,0.56439387,88522.0,88510.0,0.0017042]
[1731368984365,0.47317082,88521.0,88510.0,0.0017042]
[1731368984573,0.45017082,88520.0,88513.0,0.16976584]
[1731368984823,0.45017082,88520.0,88510.0,0.0017042]
[1731368985952,0.16976584,88519.0,88510.0,0.0017042]
[1731368986151,0.45017082,88520.0,88510.0,0.0017042]
[1731368987048,0.58739387,88519.0,88510.0,0.0017042]
[1731368987381,0.45017082,88518.0,88510.0,0.0017042]
[1731368987585,0.15490938,88511.0,88510.0,0.0017042]
[1731368987754,0.26913243,88511.0,88510.0,0.0017042]
[1731368988839,0.13722305,88511.0,88510.0,0.0017042]
[1731368989057,0.44846662,88500.0,88499.0,0.16976584]
[1731368989266,0.0469,88529.0,88504.0,0.13190938]
[1731368989466,0.16976584,88517.0,88499.0,0.05671058]
[1731368989684,0.16976584,88517.0,88498.0,0.005]
[1731368989685,0.16976584,88517.0,88501.0,0.16976584]
[1731368989837,0.16976584,88517.0,88502.0,0.05643261]
[1731368990042,0.96598889,88526.0,88502.0,0.05643261]
[1731368990218,0.96598889,88526.0,88501.0,0.16976584]
[1731368990417,0.023,88525.0,88502.0,0.05643261]
[1731368990618,0.11422305,88524.0,88502.0,0.05643261]
[1731368990853,0.023,88523.0,88502.0,0.05643261]
[1731368991076,0.023,88515.0,88497.0,0.0777]
[1731368991293,0.023,88513.0,88502.0,0.16976584]
[1731368991499,0.11422305,88512.0,88498.0,0.05623749]
[1731368991764,0.11422305,88512.0,88495.0,0.0577485]
[1731368992162,0.16976584,88511.0,88495.0,0.0577485]
[1731368992291,0.28398889,88511.0,88495.0,0.0577485]
[1731368992499,0.682,88510.0,88495.0,0.0017046]
[1731368993342,0.682,88510.0,88496.0,0.05661683]
[1731368993801,0.677,88510.0,88496.0,0.05661683]
[1731368994227,3.5,88500.0,88496.0,0.05661683]
[1731368994437,0.66812586,88499.0,88498.0,0.06123749]
[1731368994804,0.56074733,88500.0,88498.0,0.06123749]
[1731368994987,0.56074733,88500.0,88499.0,0.05671058]
[1731368995636,0.56074733,88500.0,88499.0,0.08751673]
[1731368996227,0.56074733,88500.0,88499.0,0.09251673]
[1731368996776,0.56074733,88500.0,88499.0,0.08751673]
[1731368997202,0.56074733,88500.0,88499.0,0.03080615]
[1731369000205,0.023,88499.0,88495.0,0.0017046]
[1731369000401,0.023,88497.0,88495.0,0.0017046]
[1731369001471,0.86912305,88496.0,88495.0,0.0017046]
[1731369002305,0.81922305,88496.0,88495.0,0.0017046]
[1731369002518,0.705,88496.0,88495.0,0.0017046]
[1731369002857,0.81922305,88496.0,88495.0,0.0017046]
[1731369002995,0.81922305,88496.0,88495.0,0.00220375]
[1731369003209,0.81922305,88496.0,88495.0,0.0027029]
[1731369003418,0.81922305,88496.0,88495.0,0.0017046]
[1731369003976,0.81922305,88496.0,88495.0,0.00220375]
[1731369004179,0.002,88492.0,88480.0,0.004513]
[1731369004428,0.81751845,88491.0,88480.0,0.004513]
[1731369004632,0.023,88483.0,88480.0,0.004513]
[1731369004824,0.02291431,88481.0,88480.0,0.004513]
[1731369004996,0.70320971,88481.0,88480.0,0.004513]
[1731369006501,0.70320971,88481.0,88480.0,0.02168826]
[1731369006502,0.81743276,88481.0,88480.0,0.02168826]
[1731369007028,0.81743276,88481.0,88480.0,0.004513]
[1731369007463,0.81743276,88481.0,88480.0,0.02168826]
[1731369007745,0.6802954,88481.0,88480.0,0.0784859]
[1731369007955,0.16976584,88499.0,88480.0,0.0784859]
[1731369007956,0.64354172,88498.0,88487.0,0.005]
[1731369008152,0.16976584,88490.0,88488.0,0.01717526]
[1731369008349,0.64354172,88498.0,88488.0,0.01888386]
[1731369008560,0.64354172,88498.0,88496.0,0.06161683]
[1731369008777,0.57160163,88500.0,88499.0,0.005]
[1731369009016,0.57160163,88500.0,88499.0,0.01717526]
[1731369010204,1.21514335,88500.0,88499.0,0.02217526]
[1731369010427,1.21514335,88500.0,88499.0,0.07888584]
[1731369010644,1.21514335,88500.0,88499.0,0.01717526]
[1731369014202,1.21514335,88500.0,88493.0,0.005]
[1731369014377,1.21514335,88500.0,88494.0,0.16976584]
[1731369014715,0.16976584,88497.0,88494.0,0.01116452]
[1731369014921,1.21514335,88500.0,88494.0,0.01116452]
[1731369015316,1.08702147,88500.0,88499.0,0.06171058]
[1731369015532,1.08702147,88500.0,88499.0,0.31869815]
[1731369015533,0.31432588,88500.0,88499.0,0.31869815]
[1731369015858,0.31432588,88500.0,88499.0,0.31669815]
[1731369016415,0.31432588,88500.0,88499.0,0.31869815]
[1731369016823,0.31432588,88500.0,88499.0,0.31669815]
[1731369017257,0.16976584,88516.0,88515.0,0.005]